bitfinex/quotes_BTCUSD_20230106
["timestamp","ask_amount","ask_price","bid_price","bid_amount"]
[1673005024848,2.2396253,16743.0,16742.0,0.03094374]
[1673005025102,2.8513713,16743.0,16742.0,0.03094374]
[1673005025370,2.49602513,16743.0,16742.0,0.03094374]
[1673005025621,3.11520345,16743.0,16742.0,0.03094374]
[1673005026138,2.50345745,16743.0,16742.0,0.03094374]
[1673005026361,3.11520345,16743.0,16742.0,0.03094374]
[1673005026618,3.15356051,16743.0,16742.0,0.03094374]
[1673005026874,2.70949217,16743.0,16742.0,0.03094374]
[1673005028163,3.15397972,16743.0,16742.0,0.03094374]
[1673005028391,2.70949217,16743.0,16742.0,0.03083958]
[1673005028935,2.67113511,16743.0,16742.0,0.03083958]
[1673005029420,3.11564751,16743.0,16742.0,0.03083958]
[1673005029671,3.15400457,16743.0,16742.0,0.03083958]
[1673005030206,2.10736618,16743.0,16742.0,0.0130397]
[1673005030491,3.79534217,16743.0,16742.0,0.0130397]
[1673005030720,3.75698511,16743.0,16742.0,0.0130397]
[1673005031754,3.79534217,16743.0,16742.0,0.0130397]
[1673005032009,3.26122286,16743.0,16742.0,0.0130397]
[1673005032729,3.2228658,16743.0,16742.0,0.0130397]
[1673005033674,3.26045659,16743.0,16742.0,0.0130397]
[1673005034705,2.6256018,16743.0,16742.0,0.0130397]
[1673005035800,2.6631331,16743.0,16742.0,0.0130397]
[1673005036050,3.10778133,16743.0,16742.0,0.0130397]
[1673005036580,2.49603533,16743.0,16742.0,0.0130397]
[1673005037556,3.10778133,16743.0,16742.0,0.0130397]
[1673005037792,2.49603533,16743.0,16742.0,0.0130397]
[1673005038960,3.10779707,16743.0,16742.0,0.0130397]
[1673005039206,2.6631331,16743.0,16742.0,0.0130397]
[1673005040227,2.0513871,16743.0,16742.0,0.0130397]
[1673005040498,2.6631331,16743.0,16742.0,0.0130397]
[1673005040719,2.0138558,16743.0,16742.0,0.0130397]
[1673005041232,2.45859057,16743.0,16742.0,0.0130397]
[1673005041502,2.0138558,16743.0,16742.0,0.0130397]
[1673005041793,2.05148725,16743.0,16742.0,0.0130397]
[1673005044082,2.66323325,16743.0,16742.0,0.0130397]
[1673005044337,2.49641304,16743.0,16742.0,0.0130397]
[1673005044582,2.05148725,16743.0,16742.0,0.0130397]
[1673005045340,2.66323325,16743.0,16742.0,0.0130397]
[1673005045890,2.05148725,16743.0,16742.0,0.0130397]
[1673005046098,1.39457132,16743.0,16742.0,0.3130397]
[1673005046387,2.05208694,16743.0,16742.0,0.0130397]
[1673005047412,1.39457132,16743.0,16742.0,0.0130397]
[1673005047686,1.39457132,16743.0,16742.0,0.6103397]
[1673005047914,2.05208694,16743.0,16742.0,0.6103397]
[1673005048178,1.60712573,16743.0,16742.0,0.6103397]
[1673005048437,1.60712573,16743.0,16742.0,0.0130397]
[1673005048706,2.05214047,16743.0,16742.0,0.0130397]
[1673005048959,2.05213856,16743.0,16742.0,0.0130397]
[1673005049214,1.39462294,16743.0,16742.0,0.0130397]
[1673005049984,2.05213856,16743.0,16742.0,0.9103397]
[1673005050251,2.05213856,16743.0,16742.0,0.6103397]
[1673005050763,2.05213856,16743.0,16742.0,0.61025732]
[1673005050988,2.05213856,16743.0,16742.0,0.01295732]
[1673005052561,1.60712573,16743.0,16742.0,0.01295732]
[1673005052857,2.14124504,16743.0,16742.0,0.01295732]
[1673005053086,0.94961011,16743.0,16742.0,0.01295732]
[1673005053357,1.39467012,16743.0,16742.0,0.01295732]
[1673005053874,1.39467012,16743.0,16742.0,0.91025732]
[1673005054166,1.39467012,16743.0,16742.0,1.50755732]
[1673005054401,0.91361584,16743.0,16742.0,2.13366688]
[1673005055222,0.73562299,16743.0,16742.0,2.13366688]
[1673005056512,0.55756213,16743.0,16742.0,2.13366688]
[1673005057013,0.29049497,16743.0,16742.0,2.13366688]
[1673005057786,0.11248145,16743.0,16742.0,2.13366688]
[1673005058130,0.29049497,16743.0,16742.0,2.13366688]
[1673005058294,0.11248145,16743.0,16742.0,2.13366688]
[1673005058552,0.29049497,16743.0,16742.0,2.13366688]
[1673005060895,0.55756213,16743.0,16742.0,2.13366688]
[1673005064310,0.29049497,16743.0,16742.0,2.13366688]
[1673005065937,0.11248145,16743.0,16742.0,2.13366688]
[1673005066421,0.29049497,16743.0,16742.0,2.13366688]
[1673005066645,0.11248145,16743.0,16742.0,2.13366688]
[1673005074568,0.29049497,16743.0,16742.0,2.13366688]
[1673005078291,0.55756213,16743.0,16742.0,2.13366688]
[1673005079349,0.5574494,16743.0,16742.0,2.13366688]
[1673005085819,0.91352378,16743.0,16742.0,2.13366688]
[1673005086074,0.91363902,16743.0,16742.0,2.13366688]
[1673005086594,0.55756464,16743.0,16742.0,2.13366688]
[1673005087106,0.73551026,16743.0,16742.0,2.13366688]
[1673005087624,0.73551026,16743.0,16742.0,0.02145732]
[1673005087625,2.41351837,16743.0,16742.0,0.02145732]
[1673005087918,2.17584048,16743.0,16742.0,0.01295732]
[1673005088205,1.51832486,16743.0,16742.0,0.01295732]
[1673005088443,2.48633459,16743.0,16742.0,0.01295732]
[1673005089091,1.83951868,16743.0,16742.0,0.61025732]
[1673005089346,0.73583905,16743.0,16742.0,1.50755732]
[1673005089604,0.73583905,16743.0,16742.0,1.51605732]
[1673005090373,0.91369246,16743.0,16742.0,1.51605732]
[1673005090626,0.73586109,16743.0,16742.0,1.51605732]
[1673005090886,1.57120808,16743.0,16742.0,0.91875732]
[1673005091141,1.57120808,16743.0,16742.0,0.61875732]
[1673005091399,2.44683889,16743.0,16742.0,0.02145732]
[1673005091664,1.78932327,16743.0,16742.0,0.02145732]
[1673005092173,2.40106927,16743.0,16742.0,0.02145732]
[1673005092436,1.78932327,16743.0,16742.0,0.02145732]
[1673005093468,1.43305954,16743.0,16742.0,0.02145732]
[1673005093729,2.09057516,16743.0,16742.0,0.02145732]
[1673005094492,2.70232116,16743.0,16742.0,0.02145732]
[1673005094765,1.8565467,16743.0,16742.0,0.02145732]
[1673005095024,2.9304652,16743.0,16742.0,0.00913952]
[1673005095328,3.5422112,16743.0,16742.0,0.00063952]
[1673005098367,4.1394752,16743.0,16742.0,0.00063952]
[1673005100428,3.5422112,16743.0,16742.0,0.00063952]
[1673005101993,4.1394752,16743.0,16742.0,0.00063952]
[1673005102500,3.60535589,16743.0,16742.0,0.00063952]
[1673005102753,3.00809189,16743.0,16742.0,0.00063952]
[1673005104422,3.5422112,16743.0,16742.0,0.00063952]
[1673005105634,3.00809189,16743.0,16742.0,0.00063952]
[1673005108554,3.5422112,16743.0,16742.0,0.00063952]
[1673005109572,3.5272112,16743.0,16742.0,0.00063952]
[1673005110092,2.99309189,16743.0,16742.0,0.00063952]
[1673005110338,2.39582789,16743.0,16742.0,0.00063952]
[1673005110600,2.84066366,16743.0,16742.0,0.00063952]
[1673005110849,2.22891766,16743.0,16742.0,0.00063952]
[1673005111648,2.39582789,16743.0,16742.0,0.00063952]
[1673005112230,1.78408189,16743.0,16742.0,0.00063952]
[1673005112684,2.39582789,16743.0,16742.0,0.00063952]
[1673005113452,1.78408189,16743.0,16742.0,0.00063952]
[1673005113714,2.39582789,16743.0,16742.0,0.00063952]
[1673005113933,1.78408189,16743.0,16742.0,0.00063952]
[1673005114221,2.39582789,16743.0,16742.0,0.00063952]
[1673005114430,2.39082789,16743.0,16742.0,0.00063952]
[1673005114968,2.39082789,16743.0,16742.0,0.00027276]
[1673005115217,1.77908189,16743.0,16742.0,0.00027276]
[1673005118047,2.3132012,16743.0,16742.0,0.00027276]
[1673005118310,2.9249472,16743.0,16742.0,0.00027276]
[1673005119596,3.5222112,16743.0,16742.0,0.00027276]
[1673005119959,2.8710235,16743.0,16742.0,0.00027276]
[1673005120121,4.10807903,16743.0,16742.0,7.725e-05]
[1673005120389,2.8710235,16743.0,16742.0,7.725e-05]
[1673005120904,3.3710235,16743.0,16742.0,7.725e-05]
[1673005121432,3.97076786,16743.0,16742.0,7.725e-05]
[1673005122525,4.03196265,16743.0,16742.0,7.725e-05]
[1673005122792,3.3710235,16743.0,16742.0,7.725e-05]
[1673005123334,4.05534588,16743.0,16742.0,7.725e-05]
[1673005124664,3.3710235,16743.0,16742.0,7.725e-05]
[1673005125471,3.97076786,16743.0,16742.0,7.725e-05]
[1673005129881,3.97076786,16743.0,16742.0,1.725e-05]
[1673005130142,3.90805317,16743.0,16742.0,1.725e-05]
[1673005130449,3.90805317,16743.0,16741.0,0.037861]
[1673005130708,2.18521045,16742.0,16741.0,0.037861]
[1673005131010,3.91447801,16742.0,16741.0,0.037861]
[1673005131277,3.37912045,16742.0,16741.0,0.037861]
[1673005131548,3.89359368,16742.0,16741.0,0.037861]
[1673005131844,3.41695227,16742.0,16741.0,0.037861]
[1673005132110,3.43614061,16742.0,16741.0,0.039861]
[1673005132385,2.95201563,16742.0,16741.0,0.039861]
[1673005133146,3.55313352,16742.0,16741.0,0.039861]
[1673005134967,3.55313352,16742.0,16741.0,0.00377679]
[1673005135218,4.10535194,16742.0,16741.0,0.00377679]
[1673005135491,3.55313352,16742.0,16741.0,0.00377679]
[1673005135994,4.2690366,16742.0,16741.0,0.00377679]
[1673005136262,3.66791871,16742.0,16741.0,0.00377679]
[1673005137838,4.20231147,16742.0,16741.0,0.00377679]
[1673005138096,4.15204369,16742.0,16741.0,0.00377679]
[1673005138351,3.05686271,16742.0,16741.0,0.00377679]
[1673005138604,3.66862271,16742.0,16741.0,0.00377679]
[1673005139664,4.20309472,16742.0,16741.0,0.00377679]
[1673005139898,0.6423304,16741.0,16740.0,0.02233076]
[1673005140167,2.22355174,16741.0,16740.0,0.02233076]
[1673005140691,1.64962834,16741.0,16740.0,0.02233076]
[1673005141089,2.39738834,16741.0,16740.0,0.02433076]
[1673005141308,1.78562834,16741.0,16740.0,0.02433076]
[1673005141529,2.39738834,16741.0,16740.0,0.02433076]
[1673005141993,1.78562834,16741.0,16740.0,0.02433076]
[1673005142218,2.39738834,16741.0,16740.0,0.02433076]
[1673005142666,2.99472334,16741.0,16740.0,0.02433076]
[1673005142894,1.78562834,16741.0,16740.0,0.02433076]
[1673005143110,2.39738834,16741.0,16740.0,0.02433076]
[1673005143330,3.52919535,16741.0,16740.0,0.02433076]
[1673005143710,3.59996534,16741.0,16740.0,0.02433076]
[1673005144728,4.19730034,16741.0,16740.0,0.02433076]
[1673005145710,3.59996534,16741.0,16740.0,0.02433076]
[1673005149532,4.19730034,16741.0,16740.0,0.02433076]
[1673005150842,3.59996534,16741.0,16740.0,0.02433076]
[1673005151342,3.66282833,16741.0,16740.0,0.02433076]
[1673005152101,2.94972794,16741.0,16740.0,0.02433076]
[1673005152351,3.57895933,16741.0,16740.0,0.02433076]
[1673005152848,3.51602134,16741.0,16740.0,0.02433076]
[1673005153859,2.91868634,16741.0,16740.0,0.02433076]
[1673005154874,2.91868634,16741.0,16740.0,0.01016649]
[1673005155155,2.88678995,16741.0,16740.0,0.01016649]
[1673005155421,3.48412495,16741.0,16737.0,0.597455]
[1673005155676,0.44540056,16738.0,16737.0,0.597455]
[1673005155927,2.12479758,16738.0,16737.0,0.605955]
[1673005156214,0.62356079,16738.0,16737.0,0.605955]
[1673005156448,0.80172101,16738.0,16737.0,0.605955]
[1673005156715,1.15351227,16738.0,16737.0,0.0085]
[1673005156987,1.15351227,16738.0,16737.0,0.0225]
[1673005156988,1.16051227,16738.0,16737.0,0.0225]
[1673005158045,0.80419182,16738.0,16737.0,0.0225]
[1673005161086,1.16065177,16738.0,16737.0,0.619978]
[1673005163335,0.80419182,16738.0,16737.0,0.0225]
[1673005163585,1.1607186,16738.0,16737.0,0.0225]
[1673005163832,0.84675837,16738.0,16737.0,0.619978]
[1673005164086,0.84675837,16738.0,16737.0,0.919978]
[1673005164339,0.84675837,16738.0,16737.0,0.619978]
[1673005164604,0.84675837,16738.0,16737.0,1.81137634]
[1673005164860,0.22314398,16738.0,16737.0,2.11137634]
[1673005165386,0.49066417,16738.0,16737.0,2.11137634]
[1673005169861,0.668878,16738.0,16737.0,2.11137634]
[1673005175865,0.49070098,16738.0,16737.0,2.11137634]
[1673005176919,0.668878,16738.0,16737.0,2.11137634]
[1673005178714,0.84726985,16738.0,16737.0,2.11137634]
[1673005178983,0.49070516,16738.0,16737.0,2.11137634]
[1673005180305,0.22318497,16738.0,16737.0,2.11137634]
[1673005182665,0.49070516,16738.0,16737.0,2.11137634]
[1673005184983,0.49070516,16738.0,16737.0,2.11131465]
[1673005185270,0.84726985,16738.0,16737.0,2.11131465]
[1673005185531,0.668878,16738.0,16737.0,2.11131465]
[1673005185786,0.49062218,16738.0,16737.0,2.11131465]
[1673005187991,0.22310199,16738.0,16737.0,2.11131465]
[1673005189535,0.04479312,16738.0,16737.0,2.11131465]
[1673005189792,0.22310199,16738.0,16737.0,2.11131465]
[1673005190105,0.04479312,16738.0,16737.0,2.11131465]
[1673005190617,0.22310199,16738.0,16737.0,2.11131465]
[1673005201364,0.49062218,16738.0,16737.0,2.11131465]
[1673005206109,0.84718687,16738.0,16737.0,2.11131465]
[1673005206368,0.668878,16738.0,16737.0,2.11131465]
[1673005206627,0.4906827,16738.0,16737.0,2.11131465]
[1673005207153,0.84724739,16738.0,16737.0,2.11131465]
[1673005207408,0.4906827,16738.0,16737.0,2.11131465]
[1673005207700,0.668878,16738.0,16737.0,2.11131465]
[1673005214139,0.66815901,16738.0,16737.0,2.11131465]
[1673005214410,0.49000298,16738.0,16737.0,2.11131465]
[1673005214939,0.47000298,16738.0,16737.0,2.11131465]
[1673005215755,0.48805117,16738.0,16737.0,2.11131465]
[1673005221535,0.22053098,16738.0,16737.0,3.11131465]
[1673005222356,0.22053098,16738.0,16737.0,3.29049489]
[1673005222357,0.04212232,16738.0,16737.0,3.29049489]
[1673005222603,0.04212232,16738.0,16737.0,3.775535]
[1673005223104,0.04212232,16738.0,16737.0,3.77580163]
[1673005224320,0.04212232,16738.0,16737.0,3.27580163]
[1673005224559,0.04212232,16738.0,16737.0,3.275535]
[1673005224799,0.22053098,16738.0,16737.0,3.09635476]
[1673005227008,0.04212232,16738.0,16737.0,3.09635476]
[1673005230772,0.04212232,16738.0,16737.0,10.59635476]
[1673005232085,0.04212232,16738.0,16737.0,10.775535]
[1673005232329,0.04212232,16738.0,16737.0,10.59635476]
[1673005232566,0.04212232,16738.0,16737.0,11.52801139]
[1673005232804,0.05414522,16738.0,16737.0,12.45217835]
[1673005233053,0.05414522,16738.0,16737.0,12.37400105]
[1673005233343,0.05414522,16738.0,16737.0,12.73232411]
[1673005233567,0.05414522,16738.0,16737.0,12.19464108]
[1673005234048,0.05414522,16738.0,16737.0,12.01546084]
[1673005234526,0.05414522,16738.0,16737.0,11.83627256]
[1673005236242,0.05414522,16738.0,16737.0,11.83653919]
[1673005237936,0.05414522,16738.0,16737.0,12.73288094]
[1673005238194,0.05414522,16738.0,16737.0,11.83653919]
[1673005239002,0.05414522,16738.0,16737.0,12.73279182]
[1673005239263,0.00015,16740.0,16738.0,0.5]
[1673005239514,0.00015,16740.0,16739.0,5.20907529]
[1673005239797,0.00015,16740.0,16739.0,5.47762339]
[1673005240092,0.44592885,16743.0,16739.0,12.97762339]
[1673005240350,0.44592885,16743.0,16741.0,1.0]
[1673005240351,0.17840866,16743.0,16741.0,1.0]
[1673005240612,0.17840866,16743.0,16742.0,2.1004]
[1673005241956,0.44592885,16743.0,16742.0,2.1004]
[1673005242231,0.18140866,16743.0,16742.0,2.1174]
[1673005242767,0.44892885,16743.0,16742.0,2.1174]
[1673005243035,0.44892885,16743.0,16742.0,2.11766655]
[1673005243808,0.49637824,16743.0,16742.0,2.11766655]
[1673005244081,0.22885805,16743.0,16742.0,2.11766655]
[1673005244351,0.05044939,16743.0,16742.0,2.11766655]
[1673005245917,0.05044939,16743.0,16742.0,2.1174]
[1673005246184,0.22885805,16743.0,16742.0,2.1174]
[1673005246435,0.05044939,16743.0,16742.0,2.1174]
[1673005246713,0.22885805,16743.0,16742.0,2.1174]
[1673005252781,0.05044939,16743.0,16742.0,2.68296624]
[1673005260488,0.05044939,16743.0,16742.0,2.68285127]
[1673005261105,0.22813893,16743.0,16742.0,2.68285127]
[1673005264390,0.04973027,16743.0,16742.0,2.68285127]
[1673005272812,0.04973027,16743.0,16742.0,10.18285127]
[1673005273317,0.04973027,16743.0,16742.0,11.18285127]
[1673005277323,0.04973027,16743.0,16742.0,11.38285127]
[1673005278368,0.04973027,16743.0,16742.0,3.88285127]
[1673005278650,0.04973027,16743.0,16742.0,11.38285127]
[1673005279202,0.22813893,16743.0,16742.0,11.38285127]
[1673005279725,0.22813893,16743.0,16742.0,3.88285127]
[1673005281463,0.49565912,16743.0,16742.0,3.88285127]
[1673005281464,0.22813893,16743.0,16742.0,3.88285127]
[1673005283562,0.04973027,16743.0,16742.0,3.88285127]
[1673005284554,0.04962816,16743.0,16742.0,3.31728503]
[1673005285603,0.04962816,16743.0,16742.0,3.98557456]
[1673005286596,0.04962816,16743.0,16742.0,4.01557456]
[1673005286856,0.04962816,16743.0,16742.0,10.84728503]
[1673005287109,0.04962816,16743.0,16742.0,11.54750873]
[1673005287369,0.04962816,16743.0,16742.0,10.84728503]
[1673005288127,0.04962816,16743.0,16742.0,11.42110279]
[1673005289444,0.04962816,16743.0,16742.0,12.16077542]
[1673005289700,0.04962816,16743.0,16742.0,13.01607792]
[1673005290509,0.04744939,16743.0,16742.0,12.99907792]
[1673005290769,0.05844939,16743.0,16742.0,13.06807792]
[1673005291038,0.05844939,16743.0,16742.0,13.36672792]
[1673005291834,0.04744939,16743.0,16742.0,13.29772792]
[1673005292093,0.05844939,16743.0,16742.0,13.36672792]
[1673005292345,0.05844939,16743.0,16742.0,14.14575999]
[1673005293939,0.05844939,16743.0,16742.0,13.54575999]
[1673005294195,0.05844939,16743.0,16742.0,13.72471924]
[1673005294715,0.05844939,16743.0,16742.0,13.3666551]
[1673005294987,0.05844939,16743.0,16742.0,14.14575999]
[1673005295531,0.05844939,16743.0,16742.0,14.59308214]
[1673005296047,0.05844939,16743.0,16742.0,14.14575999]
[1673005297456,0.05844939,16743.0,16742.0,14.32453404]
[1673005297902,0.05844939,16743.0,16742.0,14.59284023]
[1673005298341,0.05844939,16743.0,16742.0,14.32453404]
[1673005298760,0.05844939,16743.0,16742.0,14.14552746]
[1673005299245,0.05844939,16743.0,16742.0,13.54552746]
[1673005299530,0.05844939,16743.0,16742.0,14.14552746]
[1673005301273,3.9e-07,16743.0,16742.0,14.14552746]
[1673005301493,0.00311652,16744.0,16742.0,14.95233404]
[1673005301713,0.00311652,16744.0,16743.0,2.34594338]
[1673005301984,1.5,16745.0,16743.0,4.02777486]
[1673005302221,1.5,16745.0,16744.0,3.32087506]
[1673005302441,1.5,16745.0,16744.0,12.61533106]
[1673005302883,1.5,16745.0,16744.0,12.01533106]
[1673005303101,1.5,16745.0,16744.0,11.83680246]
[1673005303418,1.5,16745.0,16744.0,11.29690367]
[1673005303664,1.51,16745.0,16744.0,11.29690367]
[1673005303918,1.5,16745.0,16744.0,11.29690367]
[1673005304174,1.508,16745.0,16744.0,10.17490367]
[1673005304429,1.508,16745.0,16744.0,10.71187034]
[1673005304923,1.5,16745.0,16744.0,10.63387034]
[1673005305187,1.51,16745.0,16744.0,11.36869608]
[1673005305452,1.51,16745.0,16744.0,10.83167179]
[1673005305694,1.5,16745.0,16744.0,11.28967197]
[1673005305961,1.5,16745.0,16744.0,10.75267179]
[1673005306199,1.5,16745.0,16744.0,10.63386251]
[1673005306453,1.5,16745.0,16744.0,10.71286251]
[1673005306710,1.5516323,16745.0,16744.0,10.89166441]
[1673005307047,1.5516323,16745.0,16744.0,10.71286251]
[1673005307715,1.5516323,16745.0,16744.0,10.89166441]
[1673005307965,1.5516323,16745.0,16744.0,10.71286251]
[1673005308214,1.5516323,16745.0,16744.0,10.71284611]
[1673005308483,1.5466323,16745.0,16744.0,10.89164801]
[1673005310010,1.5466323,16745.0,16744.0,11.09164801]
[1673005310528,1.5466323,16745.0,16744.0,12.09164801]
[1673005311047,1.5466323,16745.0,16744.0,12.69164801]
[1673005311312,0.8762723,16745.0,16744.0,12.69139996]
[1673005311559,0.2553693,16745.0,16744.0,12.95967863]
[1673005311807,0.2553693,16745.0,16744.0,12.69139996]
[1673005312098,0.2503693,16745.0,16744.0,12.95967863]
[1673005313392,3e-07,16745.0,16744.0,13.7247611]
[1673005313666,0.00394054,16747.0,16745.0,0.37507924]
[1673005313928,0.00394054,16747.0,16746.0,5.32319075]
[1673005314191,0.00394054,16747.0,16746.0,5.32339066]
[1673005314762,0.04400216,16747.0,16746.0,12.82339066]
[1673005315516,0.03885216,16747.0,16746.0,12.82339066]
[1673005316042,0.03885216,16747.0,16746.0,12.82336837]
[1673005316313,0.03885216,16747.0,16746.0,12.52486252]
[1673005316833,0.008,16747.0,16746.0,12.61286252]
[1673005317093,0.008,16747.0,16746.0,12.07907567]
[1673005317385,0.008,16747.0,16746.0,12.61275244]
[1673005317946,0.008,16747.0,16746.0,12.61260921]
[1673005318204,0.008,16747.0,16746.0,12.07907567]
[1673005318764,0.04734283,16747.0,16746.0,12.07907567]
[1673005320061,0.04734283,16747.0,16746.0,12.61292934]
[1673005321382,0.04734283,16747.0,16746.0,12.60672634]
[1673005321641,0.04734283,16747.0,16746.0,12.60704296]
[1673005321892,0.04734283,16747.0,16746.0,12.07287267]
[1673005322803,0.04734283,16747.0,16746.0,12.70067267]
[1673005322959,0.04734283,16747.0,16746.0,14.97735022]
[1673005323475,0.04734283,16747.0,16746.0,14.37735022]
[1673005323737,0.04734283,16747.0,16746.0,13.52095961]
[1673005324280,0.03934283,16747.0,16746.0,13.43295961]
[1673005324514,0.04834283,16747.0,16746.0,13.52095961]
[1673005324766,0.009,16747.0,16746.0,12.87932067]
[1673005325038,0.009,16747.0,16746.0,12.07287267]
[1673005325589,0.009,16747.0,16746.0,12.62428289]
[1673005326888,0.04692451,16747.0,16746.0,12.62428289]
[1673005327154,0.04692451,16747.0,16746.0,12.07287267]
[1673005327685,0.04692451,16747.0,16746.0,13.19172961]
[1673005330012,0.04692451,16747.0,16746.0,13.45970161]
[1673005332057,0.04692451,16747.0,16746.0,13.11553402]
[1673005332321,0.04692451,16747.0,16746.0,12.25152067]
[1673005332843,0.04692451,16747.0,16746.0,12.81509884]
[1673005333126,0.04692451,16747.0,16746.0,12.63645084]
[1673005335753,0.04692451,16747.0,16746.0,13.00645083]
[1673005337766,0.04692451,16747.0,16746.0,12.44287266]
[1673005338033,0.04692451,16747.0,16746.0,12.62152066]
[1673005340347,0.04692451,16747.0,16746.0,13.48697136]
[1673005340597,0.04692451,16747.0,16746.0,14.08697136]
[1673005341387,0.04692451,16747.0,16746.0,13.48697136]
[1673005342141,0.04685045,16747.0,16746.0,13.48697136]
[1673005343981,0.04685045,16747.0,16746.0,14.08697136]
[1673005344251,0.04685045,16747.0,16746.0,14.4450355]
[1673005344512,0.04685045,16747.0,16746.0,14.2663875]
[1673005345026,0.04685045,16747.0,16746.0,14.44537154]
[1673005345294,0.04685045,16747.0,16746.0,14.2663875]
[1673005346333,0.04685045,16747.0,16746.0,14.90802644]
[1673005346588,0.04685045,16747.0,16746.0,15.20659644]
[1673005346841,0.04685045,16747.0,16746.0,15.02788245]
[1673005347091,0.04685045,16747.0,16746.0,14.74426795]
[1673005348726,0.04685045,16747.0,16746.0,14.44569795]
[1673005348941,0.04685045,16747.0,16746.0,15.08733689]
[1673005350454,0.04685045,16747.0,16746.0,15.0640822]
[1673005350708,0.04685045,16747.0,16746.0,14.44569795]
[1673005352776,4.63522382,16750.0,16746.0,14.74427795]
[1673005353032,4.63522382,16750.0,16749.0,1.0]
[1673005353293,4.63522382,16750.0,16749.0,3.09965]
[1673005354020,4.63522382,16750.0,16749.0,10.59965]
[1673005354277,4.63522382,16750.0,16749.0,11.15903579]
[1673005355076,4.63522382,16750.0,16749.0,11.20003579]
[1673005355796,4.45681516,16750.0,16749.0,11.20003579]
[1673005356579,4.45681516,16750.0,16749.0,11.79398346]
[1673005357066,4.49600174,16750.0,16749.0,11.79398346]
[1673005361700,4.49600174,16750.0,16749.0,12.16398345]
[1673005364842,4.49600174,16750.0,16749.0,11.9836982]
[1673005365106,4.49600174,16750.0,16749.0,12.5836982]
[1673005365402,4.49600174,16750.0,16749.0,14.08549025]
[1673005365683,4.49600174,16750.0,16749.0,14.2645908]
[1673005366452,4.49600174,16750.0,16749.0,13.6645908]
[1673005366711,4.49600174,16750.0,16749.0,12.84822785]
[1673005367480,4.49600174,16750.0,16749.0,12.25214057]
[1673005367739,4.49600174,16750.0,16749.0,12.48872416]
[1673005368769,4.49600174,16750.0,16749.0,11.98348976]
[1673005369288,4.49600174,16750.0,16749.0,12.65029521]
[1673005369543,4.49600174,16750.0,16749.0,12.65056165]
[1673005370071,4.49600174,16750.0,16749.0,11.9837562]
[1673005370598,4.49600174,16750.0,16749.0,12.56766358]
[1673005370880,4.49600174,16750.0,16749.0,12.62081016]
[1673005371132,4.49600174,16750.0,16749.0,11.9837562]
[1673005371383,4.49600174,16750.0,16749.0,12.62081016]
[1673005372412,4.49600174,16750.0,16749.0,12.68754562]
[1673005372672,4.49600174,16750.0,16749.0,13.32459958]
[1673005372948,4.49600174,16750.0,16749.0,12.68754562]
[1673005373231,4.49600174,16750.0,16749.0,12.62081016]
[1673005374610,4.49600174,16750.0,16749.0,13.31641908]
[1673005374883,4.49600174,16750.0,16749.0,12.67936512]
[1673005375651,4.49600174,16750.0,16749.0,13.31641908]
[1673005375907,4.49600174,16750.0,16749.0,11.9837562]
[1673005376182,4.49600174,16750.0,16749.0,12.62081016]
[1673005377563,4.49600174,16750.0,16749.0,11.9837562]
[1673005377812,4.49600174,16750.0,16749.0,12.25240701]
[1673005378068,4.49600174,16750.0,16749.0,11.9837562]
[1673005378604,4.49600174,16750.0,16749.0,12.62081016]
[1673005378875,4.49600174,16750.0,16749.0,12.88946097]
[1673005379130,4.49600174,16750.0,16749.0,13.39822045]
[1673005379403,4.49600174,16750.0,16749.0,12.88946097]
[1673005379663,4.49600174,16750.0,16749.0,14.4823507]
[1673005379938,4.49590845,16750.0,16749.0,14.4823507]
[1673005380464,4.49590845,16750.0,16749.0,13.8823507]
[1673005380987,4.49590845,16750.0,16749.0,13.8060193]
[1673005381426,4.49590845,16750.0,16749.0,13.24529674]
[1673005381966,4.49590845,16750.0,16749.0,13.24635636]
[1673005382226,4.49590845,16750.0,16749.0,12.65092701]
[1673005382485,4.49590845,16750.0,16749.0,13.22883717]
[1673005383565,4.49590845,16750.0,16749.0,12.65092701]
[1673005383824,4.49590845,16750.0,16749.0,13.24641441]
[1673005384338,4.49590845,16750.0,16749.0,13.88346837]
[1673005384589,4.49590845,16750.0,16749.0,13.28205375]
[1673005385196,4.49590845,16750.0,16749.0,13.77920641]
[1673005385354,4.21237003,16750.0,16749.0,15.18324761]
[1673005385861,3.26612703,16750.0,16749.0,15.18324761]
[1673005386118,3.26612703,16750.0,16749.0,15.04224761]
[1673005386373,3.26612703,16750.0,16749.0,15.18124761]
[1673005386629,3.26612703,16750.0,16749.0,15.04224761]
[1673005386887,3.26612703,16750.0,16749.0,15.18124761]
[1673005387155,3.26612703,16750.0,16749.0,15.04224761]
[1673005387417,3.26612703,16750.0,16749.0,15.18224761]
[1673005388004,1.44238903,16750.0,16749.0,15.18224761]
[1673005388261,0.00363699,16751.0,16749.0,15.18224761]
[1673005388518,9.9e-07,16751.0,16750.0,3.49046612]
[1673005388780,0.0039437,16753.0,16751.0,0.5]
[1673005389083,0.0039437,16753.0,16752.0,4.49021967]
[1673005389343,0.0039437,16753.0,16752.0,11.99021967]
[1673005390696,0.0039437,16753.0,16752.0,12.10221967]
[1673005391176,0.0037937,16753.0,16752.0,11.10221967]
[1673005391426,0.0037937,16753.0,16752.0,12.64394653]
[1673005392461,0.0037937,16753.0,16752.0,12.40068967]
[1673005392721,0.0037937,16753.0,16752.0,12.68472873]
[1673005393041,0.0388339,16753.0,16752.0,12.68472873]
[1673005393233,0.0388339,16753.0,16752.0,12.57272873]
[1673005393495,0.0388339,16753.0,16752.0,12.68472873]
[1673005393751,0.0388339,16753.0,16752.0,12.37272873]
[1673005394006,0.0388339,16753.0,16752.0,12.48472873]
[1673005394261,0.0388339,16753.0,16752.0,12.37272873]
[1673005394516,0.0388339,16753.0,16752.0,12.41172873]
[1673005394777,0.0388339,16753.0,16752.0,4.91172873]
[1673005395774,0.0388339,16753.0,16752.0,3.72083806]
[1673005395777,0.21724256,16753.0,16752.0,3.72083806]
[1673005397849,0.48476275,16753.0,16752.0,3.72083806]
[1673005398368,0.0388339,16753.0,16752.0,3.72083806]
[1673005398607,0.0388339,16753.0,16752.0,11.18183806]
[1673005398868,0.0388339,16753.0,16752.0,11.22083806]
[1673005399127,0.0388339,16753.0,16752.0,11.18183806]
[1673005400415,0.0388339,16753.0,16752.0,11.55183805]
[1673005402493,0.0388339,16753.0,16752.0,11.69283805]
[1673005407620,0.0388339,16753.0,16752.0,12.28678572]
[1673005408163,0.0388339,16753.0,16752.0,12.51846348]
[1673005411814,0.44893533,16754.0,16753.0,0.0169661]
[1673005412068,0.80550002,16754.0,16753.0,0.67780494]
[1673005412342,0.80550002,16754.0,16753.0,2.17162094]
[1673005412600,0.44893533,16754.0,16753.0,2.17162094]
[1673005412851,0.6542618,16754.0,16753.0,2.17162094]
[1673005413096,0.6542618,16754.0,16753.0,2.28362094]
[1673005413656,0.83266851,16754.0,16753.0,2.28362094]
[1673005413909,0.47610382,16754.0,16753.0,2.28362094]
[1673005415456,0.47610382,16754.0,16753.0,2.68362094]
[1673005415700,0.47610382,16754.0,16753.0,2.28362094]